[Event "*** Qualifier 3: Titled Tuesday 3|2 Blitz"]
[Site "Chess.com"]
[Date "2017.04.18"]
[Round "9"]
[White "Malev212"]
[Black "iturrizaga"]
[Result "0-1"]
[WhiteElo "2465"]
[BlackElo "2663"]
[TimeControl "180+2"]
[EndTime "14:59:18 PDT"]
[Termination "iturrizaga won on time"]

1. e4 {[%clk 0:02:58]} 1... c5 {[%clk 0:03:00.6]} 2. Nf3 {[%clk 0:02:58.1]} 2...
g6 {[%clk 0:03:02.2]} 3. d4 {[%clk 0:02:48.8]} 3... cxd4 {[%clk 0:03:04.1]} 4.
Nxd4 {[%clk 0:02:49.6]} 4... Nc6 {[%clk 0:03:04.7]} 5. c4 {[%clk 0:02:49.5]}
5... Nf6 {[%clk 0:03:05.5]} 6. Nc3 {[%clk 0:02:50.1]} 6... d6 {[%clk 0:03:07.1]}
7. Be2 {[%clk 0:02:50.8]} 7... Bg7 {[%clk 0:03:08.8]} 8. Be3 {[%clk 0:02:50]}
8... O-O {[%clk 0:03:10.1]} 9. O-O {[%clk 0:02:50.8]} 9... Bd7 {[%clk
0:03:11.7]} 10. Nb3 {[%clk 0:02:46.5]} 10... a5 {[%clk 0:03:03.6]} 11. Qd2
{[%clk 0:02:42.7]} 11... a4 {[%clk 0:03:03.7]} 12. Nd4 {[%clk 0:02:42.9]} 12...
Qa5 {[%clk 0:03:04.3]} 13. Ndb5 {[%clk 0:02:34.2]} 13... Rfc8 {[%clk 0:03:02.8]}
14. Rac1 {[%clk 0:02:32.7]} 14... Ne5 {[%clk 0:02:58.2]} 15. b3 {[%clk
0:02:06.5]} 15... axb3 {[%clk 0:02:58.1]} 16. axb3 {[%clk 0:02:07.2]} 16... Bxb5
{[%clk 0:02:54.3]} 17. cxb5 {[%clk 0:02:06.6]} 17... Qb4 {[%clk 0:02:33.7]} 18.
Bd4 {[%clk 0:01:48.1]} 18... Qxb3 {[%clk 0:02:24.6]} 19. f4 {[%clk 0:01:43.4]}
19... Nc4 {[%clk 0:02:24.3]} 20. Bxc4 {[%clk 0:01:23.4]} 20... Rxc4 {[%clk
0:02:26.2]} 21. Rb1 {[%clk 0:00:59.6]} 21... Qa3 {[%clk 0:02:22.3]} 22. e5
{[%clk 0:00:44.7]} 22... dxe5 {[%clk 0:02:17.6]} 23. fxe5 {[%clk 0:00:44.2]}
23... Rd8 {[%clk 0:02:14.1]} 24. Ne2 {[%clk 0:00:37.6]} 24... Ne4 {[%clk
0:01:12.1]} 25. Qf4 {[%clk 0:00:35.2]} 25... f5 {[%clk 0:01:13.6]} 26. exf6
{[%clk 0:00:26.4]} 26... Nxf6 {[%clk 0:01:14.2]} 27. Qe5 {[%clk 0:00:18.4]}
27... Qd6 {[%clk 0:01:09.8]} 28. Qxd6 {[%clk 0:00:18.5]} 28... Rxd6 {[%clk
0:01:11.7]} 29. Bf2 {[%clk 0:00:16.9]} 29... Ne4 {[%clk 0:01:08.5]} 30. Be3
{[%clk 0:00:16.3]} 30... Rc2 {[%clk 0:01:02.9]} 31. Nf4 {[%clk 0:00:15.8]} 31...
Nc3 {[%clk 0:00:58.7]} 32. Rbe1 {[%clk 0:00:12.8]} 32... Nxb5 {[%clk 0:00:40.3]}
33. Bf2 {[%clk 0:00:08.3]} 33... Bf6 {[%clk 0:00:34.6]} 34. h4 {[%clk 0:00:05]}
34... Rdd2 {[%clk 0:00:24.4]} 0-1

[Event "*** Qualifier 3: Titled Tuesday 3|2 Blitz"]
[Site "Chess.com"]
[Date "2017.04.18"]
[Round "9"]
[White "tigra"]
[Black "Konavets"]
[Result "0-1"]
[WhiteElo "2605"]
[BlackElo "2618"]
[TimeControl "180+2"]
[EndTime "14:59:22 PDT"]
[Termination "Konavets won by resignation"]

1. e4 {[%clk 0:03:00.7]} 1... c5 {[%clk 0:02:59.1]} 2. Nf3 {[%clk 0:02:58.6]}
2... d6 {[%clk 0:02:48.8]} 3. d4 {[%clk 0:02:59.5]} 3... cxd4 {[%clk 0:02:50.7]}
4. Nxd4 {[%clk 0:03:01]} 4... Nf6 {[%clk 0:02:52.6]} 5. Nc3 {[%clk 0:03:02.2]}
5... a6 {[%clk 0:02:53.9]} 6. Bg5 {[%clk 0:03:02.8]} 6... Nbd7 {[%clk
0:02:53.3]} 7. Qe2 {[%clk 0:03:02.6]} 7... h6 {[%clk 0:02:52]} 8. Bh4 {[%clk
0:03:03.6]} 8... Qc7 {[%clk 0:02:50.6]} 9. O-O-O {[%clk 0:03:03.4]} 9... b5
{[%clk 0:02:51.8]} 10. g4 {[%clk 0:03:02.1]} 10... Bb7 {[%clk 0:02:52.5]} 11.
Bg2 {[%clk 0:03:02.9]} 11... e5 {[%clk 0:02:48.9]} 12. Nf5 {[%clk 0:03:03.5]}
12... g6 {[%clk 0:02:50.3]} 13. Ne3 {[%clk 0:03:04.2]} 13... Be7 {[%clk
0:02:51.7]} 14. Bg3 {[%clk 0:03:03]} 14... Rc8 {[%clk 0:02:51]} 15. h4 {[%clk
0:03:01.4]} 15... Qa5 {[%clk 0:02:34.3]} 16. Kb1 {[%clk 0:02:52.2]} 16... Rxc3
{[%clk 0:02:32.7]} 17. bxc3 {[%clk 0:02:45.6]} 17... Nc5 {[%clk 0:02:19.1]} 18.
f3 {[%clk 0:02:35.9]} 18... Qa3 {[%clk 0:02:18.8]} 19. Rd3 {[%clk 0:02:31.2]}
19... Nxd3 {[%clk 0:02:09.6]} 20. Qxd3 {[%clk 0:02:17.6]} 20... O-O {[%clk
0:02:09.4]} 21. c4 {[%clk 0:02:18]} 21... Qa5 {[%clk 0:02:08.9]} 22. cxb5 {[%clk
0:02:18.3]} 22... axb5 {[%clk 0:02:10.4]} 23. Be1 {[%clk 0:02:18.5]} 23... Qa7
{[%clk 0:01:23.6]} 24. Bb4 {[%clk 0:02:16.5]} 24... Ra8 {[%clk 0:01:24.5]} 25.
a3 {[%clk 0:02:13.7]} 25... Bc6 {[%clk 0:01:22]} 26. Rd1 {[%clk 0:02:00.2]}
26... d5 {[%clk 0:01:20.6]} 27. Bxe7 {[%clk 0:01:54.5]} 27... Qxe7 {[%clk
0:01:20.7]} 28. exd5 {[%clk 0:01:55]} 28... Rxa3 {[%clk 0:01:19.6]} 29. c3
{[%clk 0:01:54.4]} 29... Qc5 {[%clk 0:01:13]} 30. dxc6 {[%clk 0:01:35.5]} 30...
Rxc3 {[%clk 0:01:12.8]} 31. Qd8+ {[%clk 0:00:50.7]} 31... Kg7 {[%clk 0:01:11.1]}
32. Qxf6+ {[%clk 0:00:50.9]} 32... Kxf6 {[%clk 0:01:02]} 33. Nd5+ {[%clk
0:00:52.8]} 33... Ke6 {[%clk 0:01:03.4]} 34. Nxc3 {[%clk 0:00:53.2]} 34... Qxc3
{[%clk 0:01:05.3]} 35. Rc1 {[%clk 0:00:53.1]} 35... Qb4+ {[%clk 0:01:06.3]} 36.
Kc2 {[%clk 0:00:46.8]} 36... Kd6 {[%clk 0:01:05.4]} 37. f4 {[%clk 0:00:33.6]}
37... Qc4+ {[%clk 0:00:49.3]} 38. Kb2 {[%clk 0:00:33.6]} 38... Qb4+ {[%clk
0:00:49.7]} 39. Ka2 {[%clk 0:00:30.9]} 39... Qd2+ {[%clk 0:00:46.9]} 40. Kb1
{[%clk 0:00:31.6]} 40... Qxg2 {[%clk 0:00:48.1]} 41. c7 {[%clk 0:00:32.4]} 41...
Qe4+ {[%clk 0:00:49.1]} 42. Kb2 {[%clk 0:00:32.4]} 42... Qb4+ {[%clk 0:00:49.7]}
0-1

[Event "*** Qualifier 3: Titled Tuesday 3|2 Blitz"]
[Site "Chess.com"]
[Date "2017.04.18"]
[Round "9"]
[White "TenisMaster"]
[Black "penguingm1"]
[Result "1-0"]
[WhiteElo "2668"]
[BlackElo "2568"]
[TimeControl "180+2"]
[EndTime "14:59:23 PDT"]
[Termination "TenisMaster won by resignation"]

1. e4 {[%clk 0:03:02]} 1... e5 {[%clk 0:02:58]} 2. Nf3 {[%clk 0:03:02.7]} 2...
Nc6 {[%clk 0:02:59]} 3. Bb5 {[%clk 0:03:03.4]} 3... a6 {[%clk 0:03:00.3]} 4. Ba4
{[%clk 0:03:04]} 4... Nf6 {[%clk 0:03:01]} 5. O-O {[%clk 0:03:05.2]} 5... Be7
{[%clk 0:03:02.2]} 6. d3 {[%clk 0:03:03.4]} 6... b5 {[%clk 0:03:02.9]} 7. Bb3
{[%clk 0:03:03.9]} 7... d6 {[%clk 0:03:04.8]} 8. a4 {[%clk 0:03:03.7]} 8... b4
{[%clk 0:03:05.7]} 9. c3 {[%clk 0:03:04.3]} 9... O-O {[%clk 0:03:06.1]} 10. Nbd2
{[%clk 0:03:05.4]} 10... Rb8 {[%clk 0:03:03.8]} 11. Bc2 {[%clk 0:03:05.9]} 11...
Be6 {[%clk 0:03:02.8]} 12. Re1 {[%clk 0:03:06.1]} 12... h6 {[%clk 0:03:03.5]}
13. h3 {[%clk 0:03:04.3]} 13... Na5 {[%clk 0:02:46.1]} 14. d4 {[%clk 0:03:03.2]}
14... c5 {[%clk 0:02:23.2]} 15. d5 {[%clk 0:02:55.2]} 15... Bd7 {[%clk
0:02:09.7]} 16. Bd3 {[%clk 0:02:56.2]} 16... bxc3 {[%clk 0:01:54.8]} 17. bxc3
{[%clk 0:02:55.3]} 17... Qc8 {[%clk 0:01:56.1]} 18. Qe2 {[%clk 0:02:53.9]} 18...
Rb6 {[%clk 0:01:50.1]} 19. Nc4 {[%clk 0:02:53.1]} 19... Nxc4 {[%clk 0:01:51.2]}
20. Bxc4 {[%clk 0:02:55]} 20... a5 {[%clk 0:01:52.8]} 21. Nd2 {[%clk 0:02:52.1]}
21... Qb7 {[%clk 0:01:51.1]} 22. Bd3 {[%clk 0:02:49.4]} 22... Qa7 {[%clk
0:01:43.3]} 23. Nc4 {[%clk 0:02:47.2]} 23... Rb7 {[%clk 0:01:42]} 24. Qd1 {[%clk
0:02:39.7]} 24... Rfb8 {[%clk 0:01:40]} 25. Na3 {[%clk 0:02:27.9]} 25... Nh7
{[%clk 0:01:18.8]} 26. Bb5 {[%clk 0:02:25.3]} 26... Bg5 {[%clk 0:01:19.4]} 27.
Qd3 {[%clk 0:01:27.2]} 27... Bxc1 {[%clk 0:01:14.8]} 28. Rexc1 {[%clk
0:01:27.3]} 28... Nf8 {[%clk 0:01:03.9]} 29. Rab1 {[%clk 0:01:27.4]} 29... g6
{[%clk 0:00:07.6]} 30. Rb3 {[%clk 0:01:20.8]} 30... Bc8 {[%clk 0:00:05.9]} 31.
Nc4 {[%clk 0:01:19.3]} 31... Bd7 {[%clk 0:00:03.8]} 32. Nxd6 {[%clk 0:01:10.8]}
32... Rb6 {[%clk 0:00:05]} 33. Nc4 {[%clk 0:01:11.5]} 33... Bxb5 {[%clk
0:00:03.8]} 34. Rxb5 {[%clk 0:01:09.5]} 34... Rxb5 {[%clk 0:00:04.9]} 35. axb5
{[%clk 0:01:10.5]} 35... Rxb5 {[%clk 0:00:06.8]} 36. Nxe5 {[%clk 0:01:11.5]}
36... Qb8 {[%clk 0:00:08.3]} 37. Nc6 {[%clk 0:01:11.5]} 37... Qb6 {[%clk
0:00:09.5]} 38. e5 {[%clk 0:01:09]} 38... a4 {[%clk 0:00:06.3]} 39. Ra1 {[%clk
0:01:07.1]} 39... c4 {[%clk 0:00:03.3]} 40. Qxc4 {[%clk 0:01:03.5]} 40... Rc5
{[%clk 0:00:04.8]} 41. Qxa4 {[%clk 0:00:58.5]} 41... Rxc3 {[%clk 0:00:04.6]} 42.
Qf4 {[%clk 0:00:57.8]} 42... Qc5 {[%clk 0:00:03.4]} 43. Qf6 {[%clk 0:00:57.3]}
43... Rc2 {[%clk 0:00:03.5]} 44. Ne7+ {[%clk 0:00:56.6]} 44... Kh7 {[%clk
0:00:02.4]} 45. Qxf7+ {[%clk 0:00:57.6]} 1-0

[Event "*** Qualifier 3: Titled Tuesday 3|2 Blitz"]
[Site "Chess.com"]
[Date "2017.04.18"]
[Round "9"]
[White "Indianlad"]
[Black "jefferyx"]
[Result "0-1"]
[WhiteElo "2730"]
[BlackElo "2656"]
[TimeControl "180+2"]
[EndTime "14:59:36 PDT"]
[Termination "jefferyx won by checkmate"]

1. Nf3 {[%clk 0:03:02]} 1... c5 {[%clk 0:03:00.6]} 2. g3 {[%clk 0:03:01.9]} 2...
b6 {[%clk 0:03:01.8]} 3. Bg2 {[%clk 0:03:03.1]} 3... Bb7 {[%clk 0:03:03.3]} 4.
O-O {[%clk 0:03:05]} 4... g6 {[%clk 0:03:04.7]} 5. a4 {[%clk 0:03:05.2]} 5...
Bg7 {[%clk 0:03:02.9]} 6. a5 {[%clk 0:03:06.4]} 6... Nf6 {[%clk 0:03:04.3]} 7.
axb6 {[%clk 0:03:03.5]} 7... axb6 {[%clk 0:03:06.2]} 8. Rxa8 {[%clk 0:03:04.7]}
8... Bxa8 {[%clk 0:03:08.1]} 9. d4 {[%clk 0:03:05.9]} 9... cxd4 {[%clk 0:03:08]}
10. Qxd4 {[%clk 0:03:06.8]} 10... d6 {[%clk 0:03:03]} 11. Nc3 {[%clk 0:02:50.8]}
11... O-O {[%clk 0:03:03.2]} 12. Qh4 {[%clk 0:02:51.1]} 12... Nbd7 {[%clk
0:03:02.2]} 13. Bh6 {[%clk 0:02:51.7]} 13... Bxh6 {[%clk 0:02:24.7]} 14. Qxh6
{[%clk 0:02:52.2]} 14... Bxf3 {[%clk 0:02:26.6]} 15. Bxf3 {[%clk 0:02:53.1]}
15... Qc7 {[%clk 0:02:27.3]} 16. Bg2 {[%clk 0:02:37]} 16... b5 {[%clk
0:02:27.3]} 17. Qd2 {[%clk 0:02:37.8]} 17... Rc8 {[%clk 0:02:27.7]} 18. Rc1
{[%clk 0:02:14.7]} 18... Qc5 {[%clk 0:02:28.5]} 19. Nd5 {[%clk 0:02:09.5]} 19...
Nxd5 {[%clk 0:02:28.5]} 20. Bxd5 {[%clk 0:02:06.2]} 20... Nf6 {[%clk 0:02:18]}
21. Bf3 {[%clk 0:02:06.7]} 21... d5 {[%clk 0:02:19]} 22. c3 {[%clk 0:01:47]}
22... b4 {[%clk 0:02:19.7]} 23. Qf4 {[%clk 0:01:35.7]} 23... d4 {[%clk
0:02:08.2]} 24. c4 {[%clk 0:01:36.9]} 24... Kg7 {[%clk 0:02:09.7]} 25. g4 {[%clk
0:01:06.6]} 25... e5 {[%clk 0:02:07.1]} 26. Qg3 {[%clk 0:01:08.2]} 26... h6
{[%clk 0:01:51]} 27. h4 {[%clk 0:01:09.6]} 27... g5 {[%clk 0:01:42]} 28. hxg5
{[%clk 0:01:04.5]} 28... hxg5 {[%clk 0:01:43.9]} 29. b3 {[%clk 0:00:53.2]} 29...
e4 {[%clk 0:01:44.7]} 30. Bg2 {[%clk 0:00:54.6]} 30... Ra8 {[%clk 0:01:43.9]}
31. Rd1 {[%clk 0:00:44.4]} 31... Ra2 {[%clk 0:01:35.5]} 32. Bf1 {[%clk
0:00:45.8]} 32... Rc2 {[%clk 0:01:33.6]} 33. Ra1 {[%clk 0:00:44.8]} 33... Rc3
{[%clk 0:01:32.1]} 34. Qb8 {[%clk 0:00:46.3]} 34... d3 {[%clk 0:01:15.4]} 35. e3
{[%clk 0:00:36.3]} 35... d2 {[%clk 0:01:14]} 36. Qd8 {[%clk 0:00:32.7]} 36...
Rc1 {[%clk 0:01:12.1]} 37. Ra6 {[%clk 0:00:34.2]} 37... Nxg4 {[%clk 0:00:49.3]}
38. Qxd2 {[%clk 0:00:35.6]} 38... Qe5 {[%clk 0:00:49.2]} 39. Qd6 {[%clk
0:00:36.9]} 39... Qxd6 {[%clk 0:00:38]} 40. Rxd6 {[%clk 0:00:38.8]} 40... Ne5
{[%clk 0:00:39.9]} 41. Kg2 {[%clk 0:00:36.5]} 41... Nf3 {[%clk 0:00:40.7]} 42.
Be2 {[%clk 0:00:24.9]} 42... Rg1+ {[%clk 0:00:39.9]} 43. Kh3 {[%clk 0:00:22.2]}
43... g4# {[%clk 0:00:41.8]} 0-1

[Event "*** Qualifier 3: Titled Tuesday 3|2 Blitz"]
[Site "Chess.com"]
[Date "2017.04.18"]
[Round "9"]
[White "Roachelley"]
[Black "BogdanDeac"]
[Result "0-1"]
[WhiteElo "2169"]
[BlackElo "2550"]
[TimeControl "180+2"]
[EndTime "14:59:37 PDT"]
[Termination "BogdanDeac won by resignation"]

1. d4 {[%clk 0:03:01.9]} 1... Nf6 {[%clk 0:02:59.3]} 2. c4 {[%clk 0:03:02.8]}
2... g6 {[%clk 0:02:59.4]} 3. Nc3 {[%clk 0:03:02.9]} 3... d5 {[%clk 0:03:00.1]}
4. Nf3 {[%clk 0:03:00.1]} 4... Bg7 {[%clk 0:03:00]} 5. Qb3 {[%clk 0:03:01]} 5...
c6 {[%clk 0:02:59.1]} 6. Bg5 {[%clk 0:02:57.1]} 6... dxc4 {[%clk 0:02:58.8]} 7.
Qxc4 {[%clk 0:02:57.5]} 7... Be6 {[%clk 0:02:56.3]} 8. Qd3 {[%clk 0:02:52.4]}
8... h6 {[%clk 0:02:56]} 9. Bh4 {[%clk 0:02:52.9]} 9... O-O {[%clk 0:02:54.6]}
10. e3 {[%clk 0:02:40.3]} 10... Qb6 {[%clk 0:02:46.1]} 11. Qd2 {[%clk
0:02:31.7]} 11... Nbd7 {[%clk 0:02:43.2]} 12. Bd3 {[%clk 0:02:30.9]} 12... c5
{[%clk 0:02:37]} 13. O-O {[%clk 0:02:18.3]} 13... cxd4 {[%clk 0:02:27]} 14. Nxd4
{[%clk 0:02:18.5]} 14... Nc5 {[%clk 0:02:28.1]} 15. Nxe6 {[%clk 0:02:17.6]}
15... Qxe6 {[%clk 0:02:25.7]} 16. Bc2 {[%clk 0:02:04.5]} 16... Rfd8 {[%clk
0:02:02.9]} 17. Qe2 {[%clk 0:02:04.6]} 17... Nd5 {[%clk 0:01:59.4]} 18. Nxd5
{[%clk 0:01:56.6]} 18... Rxd5 {[%clk 0:02:00]} 19. Rad1 {[%clk 0:01:51.1]} 19...
g5 {[%clk 0:01:32.3]} 20. Bg3 {[%clk 0:01:51]} 20... Rxd1 {[%clk 0:01:13.5]} 21.
Rxd1 {[%clk 0:01:51.2]} 21... Bxb2 {[%clk 0:01:13.7]} 22. Qb5 {[%clk 0:01:21.9]}
22... Qb6 {[%clk 0:01:12.4]} 23. Qc4 {[%clk 0:01:23.2]} 23... Bg7 {[%clk
0:01:04.1]} 24. h4 {[%clk 0:01:15.6]} 24... Qc6 {[%clk 0:00:53.6]} 25. hxg5
{[%clk 0:01:09.2]} 25... hxg5 {[%clk 0:00:54]} 26. Qg4 {[%clk 0:01:06]} 26...
Qf6 {[%clk 0:00:39.5]} 27. Rd5 {[%clk 0:00:55.7]} 27... Ne6 {[%clk 0:00:38.9]}
28. Rf5 {[%clk 0:00:48.3]} 28... Qa1+ {[%clk 0:00:33]} 29. Kh2 {[%clk
0:00:48.4]} 29... Rc8 {[%clk 0:00:32.3]} 30. Bb3 {[%clk 0:00:18.2]} 30... Rc1
{[%clk 0:00:30.3]} 31. Bb8 {[%clk 0:00:18.8]} 31... Rh1+ {[%clk 0:00:21.9]} 32.
Kg3 {[%clk 0:00:19.1]} 32... Bf6 {[%clk 0:00:21.5]} 33. Bxe6 {[%clk 0:00:13.5]}
33... fxe6 {[%clk 0:00:21.9]} 34. Rf3 {[%clk 0:00:10.7]} 34... Kf7 {[%clk
0:00:15.8]} 35. Qxg5 {[%clk 0:00:09.9]} 35... Qg1 {[%clk 0:00:12.5]} 36. Kg4
{[%clk 0:00:03.1]} 36... Qxg2+ {[%clk 0:00:12.6]} 37. Rg3 {[%clk 0:00:04.3]}
37... Qxg3+ {[%clk 0:00:13.2]} 38. Kxg3 {[%clk 0:00:05.2]} 38... Bxg5 {[%clk
0:00:14.1]} 0-1

[Event "*** Qualifier 3: Titled Tuesday 3|2 Blitz"]
[Site "Chess.com"]
[Date "2017.04.18"]
[Round "9"]
[White "djogrodek1"]
[Black "proxy6"]
[Result "1-0"]
[WhiteElo "2425"]
[BlackElo "2220"]
[TimeControl "180+2"]
[EndTime "14:59:40 PDT"]
[Termination "djogrodek1 won by resignation"]

1. c4 {[%clk 0:03:02]} 1... e5 {[%clk 0:02:56.7]} 2. g3 {[%clk 0:03:00.1]} 2...
Nc6 {[%clk 0:02:56.4]} 3. Nc3 {[%clk 0:03:01.1]} 3... Bc5 {[%clk 0:02:57.4]} 4.
Bg2 {[%clk 0:03:02.3]} 4... a6 {[%clk 0:02:57.4]} 5. e3 {[%clk 0:03:02.4]} 5...
d6 {[%clk 0:02:57.9]} 6. b3 {[%clk 0:03:03]} 6... Ba7 {[%clk 0:02:56.8]} 7. Bb2
{[%clk 0:03:04.3]} 7... Nf6 {[%clk 0:02:43.5]} 8. Nge2 {[%clk 0:03:04.8]} 8...
O-O {[%clk 0:02:44.7]} 9. O-O {[%clk 0:03:05.8]} 9... Bf5 {[%clk 0:02:41.1]} 10.
d4 {[%clk 0:03:06.1]} 10... Qd7 {[%clk 0:02:31.7]} 11. Nd5 {[%clk 0:03:06.8]}
11... Ne8 {[%clk 0:02:23.2]} 12. Re1 {[%clk 0:02:56.5]} 12... Bh3 {[%clk
0:02:22.8]} 13. Bh1 {[%clk 0:02:58]} 13... Rd8 {[%clk 0:02:15.6]} 14. Qd2 {[%clk
0:02:59.1]} 14... f5 {[%clk 0:02:09.9]} 15. Rad1 {[%clk 0:02:54.3]} 15... e4
{[%clk 0:01:44.6]} 16. b4 {[%clk 0:02:44.5]} 16... Ne7 {[%clk 0:01:43.6]} 17.
Nxe7+ {[%clk 0:02:42]} 17... Qxe7 {[%clk 0:01:45.5]} 18. d5 {[%clk 0:02:34.4]}
18... g5 {[%clk 0:01:30.9]} 19. Qc3 {[%clk 0:01:54.9]} 19... Ng7 {[%clk
0:01:25.4]} 20. Nd4 {[%clk 0:01:55.5]} 20... Bxd4 {[%clk 0:01:23.3]} 21. Qxd4
{[%clk 0:01:57.4]} 21... Rf7 {[%clk 0:01:08.6]} 22. c5 {[%clk 0:01:50.9]} 22...
Rdf8 {[%clk 0:00:54.7]} 23. Rc1 {[%clk 0:01:49.3]} 23... Rf6 {[%clk 0:00:35.1]}
24. cxd6 {[%clk 0:01:46.2]} 24... Rxd6 {[%clk 0:00:32.6]} 25. Bg2 {[%clk
0:00:51.8]} 25... Bxg2 {[%clk 0:00:30.1]} 26. Kxg2 {[%clk 0:00:53.7]} 26... c6
{[%clk 0:00:15.5]} 27. Rc5 {[%clk 0:00:40.2]} 27... Rfd8 {[%clk 0:00:15.1]} 28.
Qxg7+ {[%clk 0:00:37.8]} 28... Qxg7 {[%clk 0:00:17]} 29. Bxg7 {[%clk 0:00:38.8]}
29... Kxg7 {[%clk 0:00:18.9]} 30. dxc6 {[%clk 0:00:40.7]} 30... Rxc6 {[%clk
0:00:19.5]} 31. Rxf5 {[%clk 0:00:40.1]} 31... Kg6 {[%clk 0:00:16.2]} 32. Rc5
{[%clk 0:00:26.3]} 32... Rxc5 {[%clk 0:00:09.2]} 33. bxc5 {[%clk 0:00:28.2]}
33... Rd2 {[%clk 0:00:09.3]} 34. Rb1 {[%clk 0:00:29.6]} 34... Rxa2 {[%clk
0:00:06.4]} 35. Rb6+ {[%clk 0:00:31]} 35... Kf5 {[%clk 0:00:06.1]} 36. Rxb7
{[%clk 0:00:32.9]} 36... Rc2 {[%clk 0:00:06.7]} 37. Ra7 {[%clk 0:00:18.3]} 37...
Rxc5 {[%clk 0:00:06.7]} 38. Rxa6 {[%clk 0:00:19.7]} 38... h5 {[%clk 0:00:06.5]}
39. Rh6 {[%clk 0:00:20.6]} 39... h4 {[%clk 0:00:04.5]} 40. gxh4 {[%clk
0:00:22.5]} 40... gxh4 {[%clk 0:00:05.4]} 41. Rh5+ {[%clk 0:00:24]} 1-0

[Event "*** Qualifier 3: Titled Tuesday 3|2 Blitz"]
[Site "Chess.com"]
[Date "2017.04.18"]
[Round "9"]
[White "jcibarra"]
[Black "Keranke"]
[Result "1-0"]
[WhiteElo "2682"]
[BlackElo "2643"]
[TimeControl "180+2"]
[EndTime "14:59:50 PDT"]
[Termination "jcibarra won by resignation"]

1. e4 {[%clk 0:03:02]} 1... g6 {[%clk 0:03:00.8]} 2. d4 {[%clk 0:03:02.9]} 2...
Bg7 {[%clk 0:03:01.9]} 3. Nf3 {[%clk 0:03:04.6]} 3... d6 {[%clk 0:03:03.4]} 4.
Bc4 {[%clk 0:03:06.2]} 4... e6 {[%clk 0:03:01.9]} 5. Bb3 {[%clk 0:03:06.4]} 5...
Ne7 {[%clk 0:03:01.1]} 6. c3 {[%clk 0:03:07.9]} 6... Nd7 {[%clk 0:02:59.2]} 7.
O-O {[%clk 0:03:09.5]} 7... b6 {[%clk 0:03:00.1]} 8. Re1 {[%clk 0:03:09.2]} 8...
Bb7 {[%clk 0:03:01.1]} 9. Bf4 {[%clk 0:03:10.5]} 9... h6 {[%clk 0:03:00.6]} 10.
h3 {[%clk 0:03:07.6]} 10... g5 {[%clk 0:03:01.3]} 11. Bh2 {[%clk 0:03:06.7]}
11... Ng6 {[%clk 0:03:02.8]} 12. Nbd2 {[%clk 0:03:07.9]} 12... Qe7 {[%clk
0:03:01.8]} 13. a4 {[%clk 0:03:08.8]} 13... a6 {[%clk 0:03:00]} 14. Qe2 {[%clk
0:02:58.6]} 14... O-O {[%clk 0:02:53.1]} 15. Bc2 {[%clk 0:02:56.2]} 15... Nf6
{[%clk 0:02:50.5]} 16. e5 {[%clk 0:02:52.2]} 16... dxe5 {[%clk 0:02:51.8]} 17.
Bxg6 {[%clk 0:02:49.5]} 17... fxg6 {[%clk 0:02:49.8]} 18. Nxe5 {[%clk
0:02:50.6]} 18... Kh7 {[%clk 0:02:47.8]} 19. Qd3 {[%clk 0:02:49.5]} 19... Qe8
{[%clk 0:02:48.6]} 20. Re2 {[%clk 0:02:44]} 20... Nd5 {[%clk 0:02:42.9]} 21. a5
{[%clk 0:02:38.9]} 21... Rf5 {[%clk 0:02:29.2]} 22. axb6 {[%clk 0:02:34.6]}
22... cxb6 {[%clk 0:02:31.1]} 23. Rae1 {[%clk 0:02:35.5]} 23... b5 {[%clk
0:02:15.9]} 24. Nb3 {[%clk 0:02:28.2]} 24... Nf4 {[%clk 0:02:10.9]} 25. Bxf4
{[%clk 0:02:26.5]} 25... gxf4 {[%clk 0:02:12.8]} 26. Nc5 {[%clk 0:02:24.9]}
26... Bd5 {[%clk 0:02:13.3]} 27. b3 {[%clk 0:02:23.3]} 27... Rd8 {[%clk
0:01:48.3]} 28. c4 {[%clk 0:02:17.1]} 28... bxc4 {[%clk 0:01:49.4]} 29. bxc4
{[%clk 0:02:19]} 29... Ba8 {[%clk 0:01:50.4]} 30. f3 {[%clk 0:02:17]} 30... h5
{[%clk 0:01:37.4]} 31. Nxa6 {[%clk 0:02:09.6]} 31... Qe7 {[%clk 0:01:28.7]} 32.
Nc5 {[%clk 0:02:01.4]} 32... Rg5 {[%clk 0:01:07.8]} 33. Kh2 {[%clk 0:01:56.1]}
33... Rd6 {[%clk 0:00:48.5]} 34. Qc3 {[%clk 0:01:31.2]} 34... Rg3 {[%clk
0:00:43.9]} 35. Ncd3 {[%clk 0:01:24.8]} 35... Qh4 {[%clk 0:00:42.6]} 36. Rg1
{[%clk 0:01:07.4]} 36... g5 {[%clk 0:00:21.4]} 37. c5 {[%clk 0:01:02.9]} 37...
g4 {[%clk 0:00:18.9]} 38. Nxf4 {[%clk 0:00:52.5]} 38... gxf3 {[%clk 0:00:16]}
39. gxf3 {[%clk 0:00:26.9]} 39... Rxg1 {[%clk 0:00:15.6]} 40. Kxg1 {[%clk
0:00:28.8]} 40... Ra6 {[%clk 0:00:14.5]} 41. Qd3+ {[%clk 0:00:23.6]} 41... Kg8
{[%clk 0:00:14.7]} 42. Qxa6 {[%clk 0:00:25.1]} 1-0